[Event "27th OIBM 2024"]
[Site "Gmund am Tegernsee"]
[Date "2024.10.29"]
[Round "4.25"]
[White "Auge, Hendrik"]
[Black "Atoyan, Alberto"]
[Result "0-1"]
[ECO "B22"]
[WhiteElo "1851"]
[BlackElo "2133"]
[Annotator "RC"]
[PlyCount "86"]
[EventDate "2024.09.16"]
[EventType "swiss"]
[EventCountry "GER"]
[SourceTitle "playchess.com"]
[Source "ChessBase"]
[SourceQuality "1"]
[TimeControl "40/5400+30:1800+30"]

1. e4 {[%emt 0:00:03]} c5 {[%emt 0:10:44]} 2. Nf3 {[%emt 0:00:12]} e6 {[%emt 0:00:06]} 3. c3 {[%emt 0:00:22]} Nf6 {[%emt 0:01:02]} 4. e5 {[%emt 0:00:57]} Nd5 {[%emt 0:00:05]} 5. d4 {[%emt 0:00:31]} cxd4 {[%emt 0:00:20]} 6. cxd4 {[%emt 0:00:13]} d6 {[%emt 0:01:27]} 7. Nc3 {[%emt 0:05:45]} Nxc3 {[%emt 0:03:38]} 8. bxc3 {[%emt 0:00:11]} Qc7 {[%emt 0:05:12]} 9. Bd2 {[%emt 0:06:49]} Nd7 {[%emt 0:06:37]} 10. exd6 {[%emt 0:04:44]} Bxd6 {[%emt 0:00:04]} 11. Bd3 {[%emt 0:02:16]} b6 {[%emt 0:03:24]} 12. O-O {[%emt 0:09:49]} Bb7 {[%emt 0:00:37]} 13. h3 {[%emt 0:00:14]} O-O {[%emt 0:02:29]} 14. Re1 {[%emt 0:16:06]} Bf4 {[%emt 0:05:09]} 15. Ng5 {[%emt 0:08:41]} Nf6 {[%emt 0:18:25]} 16. Bxf4 {[%emt 0:17:47]} Qxf4 {[%emt 0:00:22]} 17. Re5 {[%emt 0:00:21]} Qh4 {[%emt 0:11:09]} 18. g3 {[%emt 0:05:45]} Qh6 {[%emt 0:01:09]} 19. h4 {[%emt 0:01:02]} g6 {[%emt 0:01:31]} 20. Re1 {[%emt 0:08:00]} Rfd8 {[%emt 0:03:53]} 21. Qe2 {[%emt 0:02:09]} Qg7 {[%emt 0:03:18]} 22. Rac1 {[%emt 0:02:59]} Rac8 {[%emt 0:05:47]} 23. Ba6 {[%emt 0:03:34]} Bxa6 {[%emt 0:00:13]} 24. Qxa6 {[%emt 0:00:09]} Rc7 {[%emt 0:00:23]} 25. Qe2 {[%emt 0:00:36]} Rdc8 {[%emt 0:02:46]} 26. Qf3 {[%emt 0:01:31]} h6 {[%emt 0:03:32]} 27. Ne4 {[%emt 0:00:26]} Nxe4 {[%emt 0:00:04]} 28. Rxe4 {[%emt 0:00:08]} h5 {[%emt 0:02:24]} 29. Re3 {[%emt 0:00:14]} Qf8 {[%emt 0:02:57]} 30. Rc2 {[%emt 0:00:15]} Qd6 {[%emt 0:01:08]} 31. Qe2 {[%emt 0:01:27]} Rc4 {[%emt 0:00:22]} 32. Qd3 {[%emt 0:00:31]} b5 {[%emt 0:00:51]} 33. a3 {[%emt 0:01:32]} a5 {[%emt 0:02:37]} 34. Kh2 {[%emt 0:01:10]} b4 {[%emt 0:01:16]} 35. axb4 {[%emt 0:00:11]} axb4 {[%emt 0:00:03]} 36. Qe2 {[%emt 0:01:08]} Rxc3 {[%emt 0:00:34]} 37. Rexc3 {[%emt 0:00:13]} Rxc3 {[%emt 0:01:46]} 38. Rxc3 {[%emt 0:00:15]} bxc3 {[%emt 0:00:01]} 39. Qd3 {[%emt 0:00:13]} Qc6 {[%emt 0:00:10]} 40. Qc2 {[%emt 0:00:34]} Qc4 {[%emt 0:00:08]} 41. Qd1 {[%emt 0:31:15]} c2 {[%emt 0:30:06]} 42. Qc1 {[%emt 0:00:37]} Qe2 {[%emt 0:01:00]} 43. Qf4 {[%emt 0:00:00]} Qe1 {[%emt 0:00:00]} 0-1

[Event "27th OIBM 2024"]
[Site "Gmund am Tegernsee"]
[Date "2024.10.29"]
[Round "4.26"]
[White "Spieker, Hans-Joachim"]
[Black "Tonndorf, Matthias"]
[Result "0-1"]
[ECO "A30"]
[WhiteElo "1830"]
[BlackElo "2129"]
[Annotator "RC"]
[PlyCount "100"]
[EventDate "2024.09.16"]
[EventType "swiss"]
[EventCountry "GER"]
[SourceTitle "playchess.com"]
[Source "ChessBase"]
[SourceQuality "1"]
[TimeControl "40/5400+30:1800+30"]

1. Nf3 {[%emt 0:00:01]} c5 {[%emt 0:00:16]} 2. c4 {[%emt 0:00:13]} b6 {[%emt 0:00:07]} 3. g3 {[%emt 0:00:02]} Bb7 {[%emt 0:00:10]} 4. Bg2 {[%emt 0:00:05]} e6 {[%emt 0:00:14]} 5. O-O {[%emt 0:00:56]} Nf6 {[%emt 0:00:14]} 6. b3 {[%emt 0:01:33]} Be7 {[%emt 0:00:58]} 7. Bb2 {[%emt 0:00:25]} O-O {[%emt 0:00:27]} 8. Nc3 {[%emt 0:04:13]} d6 {[%emt 0:03:07]} 9. e3 {[%emt 0:03:29]} a6 {[%emt 0:03:58]} 10. Qe2 {[%emt 0:03:55]} Nbd7 {[%emt 0:00:45]} 11. Rfd1 {[%emt 0:03:46]} Ra7 {[%emt 0:02:21]} 12. a3 {[%emt 0:04:51]} Qa8 {[%emt 0:02:33]} 13. b4 {[%emt 0:02:36]} cxb4 {[%emt 0:05:37]} 14. axb4 {[%emt 0:00:03]} Ne5 {[%emt 0:00:32]} 15. Ne1 {[%emt 0:01:24]} Bxg2 {[%emt 0:01:47]} 16. Nxg2 {[%emt 0:01:18]} Rc8 {[%emt 0:04:11]} 17. d3 {[%emt 0:01:43]} Qb7 {[%emt 0:04:09]} 18. b5 {[%emt 0:10:31]} a5 {[%emt 0:01:24]} 19. Ne1 {[%emt 0:06:03]} Ned7 {[%emt 0:03:06]} 20. Nf3 {[%emt 0:03:42]} e5 {[%emt 0:01:08]} 21. e4 {[%emt 0:01:55]} Nc5 {[%emt 0:00:16]} 22. Rac1 {[%emt 0:03:44]} Bf8 {[%emt 0:01:01]} 23. Ba3 {[%emt 0:04:25]} Ne6 {[%emt 0:07:12]} 24. Nd5 {[%emt 0:02:16]} Nxd5 {[%emt 0:00:49]} 25. cxd5 {[%emt 0:00:49]} Nc5 {[%emt 0:00:14]} 26. d4 {[%emt 0:01:07]} exd4 {[%emt 0:00:39]} 27. Nxd4 {[%emt 0:00:13]} Re8 {[%emt 0:00:45]} 28. Bxc5 {[%emt 0:01:19]} dxc5 {[%emt 0:01:03]} 29. Nc6 {[%emt 0:00:11]} Raa8 {[%emt 0:00:49]} 30. e5 {[%emt 0:02:38]} Qd7 {[%emt 0:08:47]} 31. Qc4 {[%emt 0:05:03]} g6 {[%emt 0:02:41]} 32. Re1 {[%emt 0:01:35]} Bg7 {[%emt 0:00:18]} 33. Rcd1 {[%emt 0:00:47]} h5 {[%emt 0:02:48]} 34. Qf4 {[%emt 0:03:47]} Qh3 {[%emt 0:02:10]} 35. Re3 {[%emt 0:05:40]} Rf8 {[%emt 0:03:10]} 36. Qe4 {[%emt 0:05:43]} Kh7 {[%emt 0:01:30]} 37. d6 {[%emt 0:06:48]} Bh6 {[%emt 0:01:48]} 38. Red3 {[%emt 0:01:51]} Qd7 {[%emt 0:00:38]} 39. f4 {[%emt 0:00:30]} Rae8 {[%emt 0:00:25]} 40. Ne7 {[%emt 0:03:47]} Qxb5 {[%emt 0:04:00]} 41. f5 {[%emt 0:30:10]} Qb4 {[%emt 0:34:54]} 42. fxg6+ {[%emt 0:02:21]} Kh8 {[%emt 0:00:47]} 43. Qxb4 {[%emt 0:00:51]} axb4 {[%emt 0:00:23]} 44. gxf7 {[%emt 0:00:10]} Rxf7 {[%emt 0:00:32]} 45. Nc6 {[%emt 0:01:58]} Rd7 {[%emt 0:00:58]} 46. Re1 {[%emt 0:02:27]} Re6 {[%emt 0:00:46]} 47. Nb8 {[%emt 0:00:00]} Rd8 {[%emt 0:00:00]} 48. d7 {[%emt 0:00:00]} Bg5 {[%emt 0:00:00]} 49. Rd6 {[%emt 0:00:00]} Rxd6 {[%emt 0:00:00]} 50. exd6 {[%emt 0:00:00]} b3 {[%emt 0:00:00]} 0-1

[Event "27th OIBM 2024"]
[Site "Gmund am Tegernsee"]
[Date "2024.10.29"]
[Round "4.27"]
[White "Fuhrmann, Bahne"]
[Black "Jekel, Wolfgang"]
[Result "0-1"]
[ECO "A41"]
[WhiteElo "2132"]
[BlackElo "1823"]
[Annotator "RC"]
[PlyCount "84"]
[EventDate "2024.09.16"]
[EventType "swiss"]
[EventCountry "GER"]
[SourceTitle "playchess.com"]
[Source "ChessBase"]
[SourceQuality "1"]
[TimeControl "40/5400+30:1800+30"]

1. Nf3 {[%emt 0:00:06]} c6 {[%emt 0:00:28]} 2. c4 {[%emt 0:01:17]} d6 {[%emt 0:00:32]} 3. d4 {[%emt 0:08:26]} Nd7 {[%emt 0:02:47]} 4. Nc3 {[%emt 0:05:56]} e5 {[%emt 0:02:32]} 5. d5 {[%emt 0:00:06]} c5 {[%emt 0:05:18]} 6. e4 {[%emt 0:02:09]} Ngf6 {[%emt 0:00:24]} 7. g3 {[%emt 0:02:15]} Be7 {[%emt 0:03:04]} 8. Bg2 {[%emt 0:01:40]} Nf8 {[%emt 0:04:36]} 9. O-O {[%emt 0:02:21]} Ng6 {[%emt 0:03:04]} 10. a4 {[%emt 0:07:34]} b6 {[%emt 0:02:20]} 11. Ne1 {[%emt 0:10:47]} h5 {[%emt 0:06:00]} 12. f4 {[%emt 0:07:03]} h4 {[%emt 0:07:22]} 13. Nd3 {[%emt 0:05:13]} hxg3 {[%emt 0:03:52]} 14. hxg3 {[%emt 0:00:15]} exf4 {[%emt 0:00:16]} 15. gxf4 {[%emt 0:15:20]} Bh3 {[%emt 0:04:38]} 16. Bxh3 {[%emt 0:04:10]} Rxh3 {[%emt 0:00:19]} 17. f5 {[%emt 0:02:32]} Kd7 {[%emt 0:01:43]} 18. Nf2 {[%emt 0:08:04]} Rg3+ {[%emt 0:08:00]} 19. Kh2 {[%emt 0:00:06]} Rxc3 {[%emt 0:00:18]} 20. bxc3 {[%emt 0:01:43]} Qh8+ {[%emt 0:00:11]} 21. Nh3 {[%emt 0:01:11]} Ne5 {[%emt 0:01:10]} 22. a5 {[%emt 0:01:21]} Qh4 {[%emt 0:00:43]} 23. Qa4+ {[%emt 0:02:05]} Kd8 {[%emt 0:01:56]} 24. Bf4 {[%emt 0:01:20]} Nfg4+ {[%emt 0:02:21]} 25. Kg2 {[%emt 0:00:17]} Ne3+ {[%emt 0:00:14]} 26. Bxe3 {[%emt 0:01:40]} Qxe4+ {[%emt 0:00:08]} 27. Kg1 {[%emt 0:02:10]} Qxe3+ {[%emt 0:00:23]} 28. Rf2 {[%emt 0:03:53]} Qxh3 {[%emt 0:00:35]} 29. axb6 {[%emt 0:01:50]} Bh4 {[%emt 0:01:13]} 30. b7 {[%emt 0:01:38]} Bxf2+ {[%emt 0:04:40]} 31. Kxf2 {[%emt 0:00:03]} Qf3+ {[%emt 0:00:54]} 32. Kg1 {[%emt 0:00:20]} Rb8 {[%emt 0:00:29]} 33. Qxa7 {[%emt 0:00:29]} Nd7 {[%emt 0:00:08]} 34. Qa5+ {[%emt 0:01:22]} Ke7 {[%emt 0:00:32]} 35. Re1+ {[%emt 0:00:44]} Kf6 {[%emt 0:00:17]} 36. Qc7 {[%emt 0:00:14]} Qg3+ {[%emt 0:00:26]} 37. Kf1 {[%emt 0:00:03]} Rh8 {[%emt 0:00:10]} 38. Re4 {[%emt 0:00:57]} Qf3+ {[%emt 0:00:21]} 39. Ke1 {[%emt 0:00:07]} Qxe4+ {[%emt 0:00:10]} 40. Kd2 {[%emt 0:00:05]} Rh2+ {[%emt 0:00:09]} 41. Kd1 {[%emt 0:30:06]} Qd3+ {[%emt 0:30:09]} 42. Ke1 {[%emt 0:00:04]} Qe2# {[%emt 0:00:04]} 0-1

[Event "27th OIBM 2024"]
[Site "Gmund am Tegernsee"]
[Date "2024.10.29"]
[Round "4.28"]
[White "Manucharyan, Andriy"]
[Black "Ospanova, Adelya"]
[Result "1-0"]
[ECO "E08"]
[WhiteElo "2130"]
[BlackElo "1772"]
[Annotator "RC"]
[PlyCount "91"]
[EventDate "2024.09.16"]
[EventType "swiss"]
[EventCountry "GER"]
[SourceTitle "playchess.com"]
[Source "ChessBase"]
[SourceQuality "1"]
[TimeControl "40/5400+30:1800+30"]

1. d4 {[%emt 0:00:04]} Nf6 {[%emt 0:00:21]} 2. c4 {[%emt 0:00:07]} e6 {[%emt 0:00:41]} 3. g3 {[%emt 0:00:06]} d5 {[%emt 0:00:06]} 4. Nf3 {[%emt 0:00:05]} Bb4+ {[%emt 0:00:13]} 5. Bd2 {[%emt 0:00:05]} Be7 {[%emt 0:00:06]} 6. Bg2 {[%emt 0:00:10]} c6 {[%emt 0:00:23]} 7. Qc2 {[%emt 0:00:32]} O-O {[%emt 0:00:15]} 8. O-O {[%emt 0:00:06]} Nbd7 {[%emt 0:00:43]} 9. Bf4 {[%emt 0:00:25]} b6 {[%emt 0:00:59]} 10. Rd1 {[%emt 0:00:50]} Bb7 {[%emt 0:00:43]} 11. Ne5 {[%emt 0:01:49]} Nh5 {[%emt 0:00:50]} 12. Bc1 {[%emt 0:02:59]} Nhf6 {[%emt 0:00:08]} 13. cxd5 {[%emt 0:00:38]} cxd5 {[%emt 0:00:05]} 14. Nc6 {[%emt 0:00:15]} Bxc6 {[%emt 0:00:08]} 15. Qxc6 {[%emt 0:00:04]} Rc8 {[%emt 0:00:26]} 16. Qa4 {[%emt 0:02:23]} a5 {[%emt 0:18:34]} 17. Nc3 {[%emt 0:05:06]} Ne8 {[%emt 0:05:07]} 18. Bf4 {[%emt 0:12:25]} Bd6 {[%emt 0:05:20]} 19. Be3 {[%emt 0:06:27]} Bb4 {[%emt 0:03:04]} 20. Nb5 {[%emt 0:01:22]} Rc4 {[%emt 0:09:11]} 21. b3 {[%emt 0:03:37]} Rc2 {[%emt 0:01:37]} 22. a3 {[%emt 0:00:39]} Be7 {[%emt 0:00:51]} 23. Rdc1 {[%emt 1:01:46]} Qc8 {[%emt 0:05:05]} 24. b4 {[%emt 0:00:00]} Rc4 {[%emt 0:05:56]} 25. Rxc4 {[%emt 0:00:00]} Qxc4 {[%emt 0:02:44]} 26. Rc1 {[%emt 0:00:00]} Qxe2 {[%emt 0:01:11]} 27. Nc3 {[%emt 0:00:00]} b5 {[%emt 0:01:02]} 28. Qxa5 {[%emt 0:00:00]} Qh5 {[%emt 0:02:06]} 29. Qxb5 {[%emt 0:00:00]} Ndf6 {[%emt 0:01:30]} 30. Qe2 {[%emt 0:00:00]} Qg6 {[%emt 0:01:30]} 31. Bf4 {[%emt 0:00:00]} Nh5 {[%emt 0:01:23]} 32. Be5 {[%emt 0:00:00]} Nef6 {[%emt 0:04:44]} 33. Bxf6 {[%emt 0:00:00]} Bxf6 {[%emt 0:00:46]} 34. Nb5 {[%emt 0:00:00]} Bg5 {[%emt 0:02:02]} 35. f4 {[%emt 0:00:00]} Be7 {[%emt 0:00:29]} 36. Rc7 {[%emt 0:00:00]} Bd8 {[%emt 0:00:31]} 37. Rc8 {[%emt 0:00:00]} Qb1+ {[%emt 0:00:58]} 38. Bf1 {[%emt 0:00:00]} Nf6 {[%emt 0:00:26]} 39. Qc2 {[%emt 0:00:00]} Qe1 {[%emt 0:00:38]} 40. Qc1 {[%emt 0:00:00]} Qe4 {[%emt 0:00:31]} 41. Qd2 {[%emt 0:26:26]} h5 {[%emt 0:31:22]} 42. Bd3 {[%emt 0:01:41]} Qf3 {[%emt 0:00:22]} 43. Qe2 {[%emt 0:02:14]} Qxe2 {[%emt 0:00:20]} 44. Bxe2 {[%emt 0:00:02]} Bb6 {[%emt 0:00:34]} 45. Rxf8+ {[%emt 0:01:55]} Kxf8 {[%emt 0:00:08]} 46. a4 {[%emt 0:00:10]} 1-0

[Event "27th OIBM 2024"]
[Site "Gmund am Tegernsee"]
[Date "2024.10.29"]
[Round "4.29"]
[White "Timagin, Petr"]
[Black "Haresh, Venkata Narayanaswam"]
[Result "1-0"]
[ECO "B91"]
[WhiteElo "2329"]
[BlackElo "1717"]
[Annotator "RC"]
[PlyCount "109"]
[EventDate "2024.09.16"]
[EventType "swiss"]
[EventCountry "GER"]
[SourceTitle "playchess.com"]
[Source "ChessBase"]
[SourceQuality "1"]
[TimeControl "40/5400+30:1800+30"]

1. e4 {[%emt 0:00:08]} c5 {[%emt 0:00:23]} 2. Nf3 {[%emt 0:00:30]} d6 {[%emt 0:00:15]} 3. d4 {[%emt 0:00:21]} cxd4 {[%emt 0:00:11]} 4. Nxd4 {[%emt 0:00:13]} Nf6 {[%emt 0:00:09]} 5. Nc3 {[%emt 0:00:09]} a6 {[%emt 0:00:07]} 6. g3 {[%emt 0:00:22]} e5 {[%emt 0:00:15]} 7. Nb3 {[%emt 0:00:18]} Be7 {[%emt 0:00:42]} 8. Bg2 {[%emt 0:00:19]} b5 {[%emt 0:02:39]} 9. a4 {[%emt 0:01:04]} b4 {[%emt 0:02:31]} 10. Nd5 {[%emt 0:00:11]} a5 {[%emt 0:01:38]} 11. Be3 {[%emt 0:01:45]} Nbd7 {[%emt 0:02:29]} 12. O-O {[%emt 0:08:43]} Bb7 {[%emt 0:09:14]} 13. Nxe7 {[%emt 0:08:50]} Qxe7 {[%emt 0:01:25]} 14. f3 {[%emt 0:01:25]} O-O {[%emt 0:04:16]} 15. Qd2 {[%emt 0:05:11]} Rfd8 {[%emt 0:03:50]} 16. Rfe1 {[%emt 0:05:40]} Qe6 {[%emt 0:11:37]} 17. Nxa5 {[%emt 0:18:45]} Rxa5 {[%emt 0:24:00]} 18. Qxb4 {[%emt 0:00:13]} Raa8 {[%emt 0:03:13]} 19. Qxb7 {[%emt 0:03:29]} Rab8 {[%emt 0:01:09]} 20. Qa6 {[%emt 0:03:25]} Rxb2 {[%emt 0:01:17]} 21. Red1 {[%emt 0:06:59]} Nb8 {[%emt 0:06:12]} 22. Qd3 {[%emt 0:03:26]} Qc8 {[%emt 0:02:15]} 23. a5 {[%emt 0:05:10]} Na6 {[%emt 0:03:09]} 24. Bb6 {[%emt 0:03:42]} Re8 {[%emt 0:01:57]} 25. Bf1 {[%emt 0:04:18]} Nb4 {[%emt 0:01:58]} 26. Qc4 {[%emt 0:00:57]} Qxc4 {[%emt 0:06:11]} 27. Bxc4 {[%emt 0:00:06]} Rc8 {[%emt 0:02:10]} 28. Rxd6 {[%emt 0:04:39]} Nxc2 {[%emt 0:02:05]} 29. Rad1 {[%emt 0:03:19]} g6 {[%emt 0:02:01]} 30. Rd8+ {[%emt 0:02:26]} Rxd8 {[%emt 0:00:12]} 31. Rxd8+ {[%emt 0:00:28]} Kg7 {[%emt 0:00:01]} 32. Rd2 {[%emt 0:01:09]} Rb1+ {[%emt 0:00:55]} 33. Kf2 {[%emt 0:00:33]} Nb4 {[%emt 0:02:13]} 34. Be2 {[%emt 0:03:17]} Ra1 {[%emt 0:00:44]} 35. Bb5 {[%emt 0:02:56]} Ng8 {[%emt 0:01:13]} 36. Bc7 {[%emt 0:01:10]} f6 {[%emt 0:00:32]} 37. Rd7+ {[%emt 0:00:28]} Kh8 {[%emt 0:00:53]} 38. Bc4 {[%emt 0:02:08]} Rc1 {[%emt 0:01:01]} 39. Bd5 {[%emt 0:00:52]} Rc2+ {[%emt 0:00:52]} 40. Kf1 {[%emt 0:00:36]} h5 {[%emt 0:01:01]} 41. Bd6 {[%emt 0:04:47]} Nxd5 {[%emt 0:10:37]} 42. exd5 {[%emt 0:00:08]} Ra2 {[%emt 0:01:53]} 43. Bf8 {[%emt 0:04:58]} Ra1+ {[%emt 0:03:49]} 44. Ke2 {[%emt 0:01:43]} g5 {[%emt 0:08:52]} 45. Ra7 {[%emt 0:03:05]} Ra2+ {[%emt 0:01:57]} 46. Ke3 {[%emt 0:00:49]} Rxh2 {[%emt 0:00:48]} 47. Ke4 {[%emt 0:02:13]} h4 {[%emt 0:02:29]} 48. Kf5 {[%emt 0:04:21]} hxg3 {[%emt 0:01:27]} 49. Kg6 {[%emt 0:02:30]} Rh6+ {[%emt 0:01:45]} 50. Bxh6 {[%emt 0:00:07]} Nxh6 {[%emt 0:00:04]} 51. Kxh6 {[%emt 0:00:13]} Kg8 {[%emt 0:00:03]} 52. Kg6 {[%emt 0:00:15]} Kf8 {[%emt 0:00:05]} 53. Kxf6 {[%emt 0:00:15]} Ke8 {[%emt 0:00:04]} 54. Rg7 {[%emt 0:00:33]} e4 {[%emt 0:00:17]} 55. fxe4 {[%emt 0:00:08]} 1-0

[Event "27th OIBM 2024"]
[Site "Gmund am Tegernsee"]
[Date "2024.10.29"]
[Round "4.30"]
[White "Beisteiner, Joachim"]
[Black "Schneider, Ilja"]
[Result "1-0"]
[ECO "C54"]
[WhiteElo "2129"]
[BlackElo "2449"]
[Annotator "ChessBase"]
[PlyCount "53"]
[EventDate "2024.09.16"]
[EventType "swiss"]
[EventCountry "GER"]
[SourceTitle "playchess.com"]
[Source "ChessBase"]
[SourceQuality "1"]
[TimeControl "40/5400+30:1800+30"]

1. e4 {[%emt 0:00:07]} e5 {[%emt 0:00:11]} 2. Nf3 {[%emt 0:00:13]} Nc6 {[%emt 0:00:08]} 3. Bc4 {[%emt 0:00:15]} Bc5 {[%emt 0:00:12]} 4. c3 {[%emt 0:00:16]} Nf6 {[%emt 0:00:08]} 5. d3 {[%emt 0:00:10]} O-O {[%emt 0:00:10]} 6. O-O {[%emt 0:00:16]} d5 {[%emt 0:00:32]} 7. exd5 {[%emt 0:00:15]} Nxd5 {[%emt 0:00:06]} 8. a4 {[%emt 0:00:57]} a6 {[%emt 0:01:25]} 9. Nbd2 {[%emt 0:00:46]} Kh8 {[%emt 0:02:10]} 10. Ne4 {[%emt 0:06:28]} Ba7 {[%emt 0:07:21]} 11. a5 {[%emt 0:02:06]} f5 {[%emt 0:16:08]} 12. Neg5 {[%emt 0:07:13]} h6 {[%emt 0:02:21]} 13. Qb3 {[%emt 0:00:24]} hxg5 {[%emt 0:21:45]} 14. Bxd5 {[%emt 0:02:16]} g4 {[%emt 0:06:36]} 15. Bxc6 {[%emt 0:09:36]} bxc6 {[%emt 0:02:50]} 16. Nxe5 {[%emt 0:00:53]} Qf6 {[%emt 0:00:05]} 17. Re1 {[%emt 0:06:19]} Rb8 {[%emt 0:04:49]} 18. Qc4 {[%emt 0:06:51]} f4 {[%emt 0:03:03]} 19. Qxc6 {[%emt 0:06:51]} g3 {[%emt 0:02:41]} 20. Ng6+ {[%emt 0:04:37]} Kg8 {[%emt 0:00:04]} 21. Qd5+ {[%emt 0:00:12]} Qf7 {[%emt 0:00:05]} 22. Qxf7+ {[%emt 0:00:30]} Rxf7 {[%emt 0:01:16]} 23. d4 {[%emt 0:07:06]} Kh7 {[%emt 0:00:45]} 24. Ne5 {[%emt 0:00:47]} gxf2+ {[%emt 0:00:22]} 25. Kxf2 {[%emt 0:00:32]} Rf6 {[%emt 0:00:02]} 26. b4 {[%emt 0:00:59]} Rb5 {[%emt 0:00:24]} 27. Bd2 {[%emt 0:01:38]} 1-0

[Event "27th OIBM 2024"]
[Site "Gmund am Tegernsee"]
[Date "2024.10.29"]
[Round "4.31"]
[White "Baenziger, Fabian"]
[Black "de Francesco, Klaus"]
[Result "1-0"]
[ECO "E08"]
[WhiteElo "2434"]
[BlackElo "2126"]
[Annotator "RC"]
[PlyCount "91"]
[EventDate "2024.09.16"]
[EventType "swiss"]
[EventCountry "GER"]
[SourceTitle "playchess.com"]
[Source "ChessBase"]
[SourceQuality "1"]
[TimeControl "40/5400+30:1800+30"]

1. Nf3 {[%emt 0:00:05]} Nf6 {[%emt 0:00:21]} 2. c4 {[%emt 0:00:14]} e6 {[%emt 0:00:26]} 3. g3 {[%emt 0:00:24]} b6 {[%emt 0:00:52]} 4. Bg2 {[%emt 0:00:20]} Bb7 {[%emt 0:00:09]} 5. d4 {[%emt 0:01:08]} Be7 {[%emt 0:01:09]} 6. O-O {[%emt 0:02:15]} c6 {[%emt 0:00:10]} 7. Nc3 {[%emt 0:01:37]} d5 {[%emt 0:00:28]} 8. Qc2 {[%emt 0:03:20]} Nbd7 {[%emt 0:01:50]} 9. b3 {[%emt 0:01:17]} O-O {[%emt 0:00:32]} 10. Rd1 {[%emt 0:00:26]} Rc8 {[%emt 0:01:25]} 11. e4 {[%emt 0:00:39]} Nxe4 {[%emt 0:09:50]} 12. Nxe4 {[%emt 0:00:10]} dxe4 {[%emt 0:00:05]} 13. Qxe4 {[%emt 0:00:17]} Nf6 {[%emt 0:03:18]} 14. Qc2 {[%emt 0:06:09]} Qc7 {[%emt 0:03:18]} 15. Bf4 {[%emt 0:06:30]} Bd6 {[%emt 0:01:04]} 16. Bxd6 {[%emt 0:01:23]} Qxd6 {[%emt 0:00:07]} 17. c5 {[%emt 0:00:03]} Qe7 {[%emt 0:00:37]} 18. Ne5 {[%emt 0:02:38]} Rfd8 {[%emt 0:03:44]} 19. b4 {[%emt 0:04:57]} Nd5 {[%emt 0:01:39]} 20. Qb2 {[%emt 0:06:58]} Ba6 {[%emt 0:02:24]} 21. Re1 {[%emt 0:10:51]} f6 {[%emt 0:04:22]} 22. Nf3 {[%emt 0:06:04]} bxc5 {[%emt 0:01:15]} 23. dxc5 {[%emt 0:01:43]} Rb8 {[%emt 0:00:59]} 24. a3 {[%emt 0:03:41]} e5 {[%emt 0:03:54]} 25. Nd4 {[%emt 0:03:14]} Qd7 {[%emt 0:00:40]} 26. Nb3 {[%emt 0:00:10]} Qc7 {[%emt 0:04:24]} 27. Rad1 {[%emt 0:05:46]} Ne7 {[%emt 0:01:29]} 28. Na5 {[%emt 0:00:36]} Kf8 {[%emt 0:04:07]} 29. Qc2 {[%emt 0:02:13]} g6 {[%emt 0:01:03]} 30. h4 {[%emt 0:03:40]} Kg7 {[%emt 0:05:16]} 31. Qc3 {[%emt 0:01:59]} Bb5 {[%emt 0:02:01]} 32. Be4 {[%emt 0:03:28]} Rxd1 {[%emt 0:02:40]} 33. Rxd1 {[%emt 0:00:05]} Rd8 {[%emt 0:00:15]} 34. Qb3 {[%emt 0:01:35]} f5 {[%emt 0:04:59]} 35. Bg2 {[%emt 0:00:30]} e4 {[%emt 0:03:03]} 36. Rxd8 {[%emt 0:06:08]} Qxd8 {[%emt 0:00:06]} 37. a4 {[%emt 0:00:02]} Ba6 {[%emt 0:03:26]} 38. Qe6 {[%emt 0:00:03]} Bc8 {[%emt 0:00:49]} 39. Qe5+ {[%emt 0:02:20]} Kf7 {[%emt 0:00:29]} 40. Nc4 {[%emt 0:00:17]} a6 {[%emt 0:05:59]} 41. Nd6+ {[%emt 0:31:17]} Kg8 {[%emt 0:30:10]} 42. Bf1 {[%emt 0:00:13]} h5 {[%emt 0:00:11]} 43. Bc4+ {[%emt 0:00:41]} Nd5 {[%emt 0:01:07]} 44. Bxd5+ {[%emt 0:01:13]} cxd5 {[%emt 0:00:06]} 45. Qxd5+ {[%emt 0:00:20]} Kh7 {[%emt 0:00:05]} 46. Qf7+ {[%emt 0:01:28]} 1-0

[Event "27th OIBM 2024"]
[Site "Gmund am Tegernsee"]
[Date "2024.10.29"]
[Round "4.32"]
[White "Cordes, Hans-Joerg"]
[Black "Troidl, Thomas"]
[Result "1-0"]
[ECO "A80"]
[WhiteElo "2161"]
[BlackElo "1905"]
[Annotator "RC"]
[PlyCount "83"]
[EventDate "2024.09.16"]
[EventType "swiss"]
[EventCountry "GER"]
[SourceTitle "playchess.com"]
[Source "ChessBase"]
[SourceQuality "1"]
[TimeControl "40/5400+30:1800+30"]

1. d4 {[%emt 0:00:03]} d5 {[%emt 0:00:06]} 2. Nf3 {[%emt 0:00:11]} e6 {[%emt 0:01:54]} 3. e3 {[%emt 0:00:48]} f5 {[%emt 0:00:22]} 4. Bd3 {[%emt 0:00:30]} Nf6 {[%emt 0:01:14]} 5. O-O {[%emt 0:00:27]} c6 {[%emt 0:00:57]} 6. b3 {[%emt 0:00:56]} Bd6 {[%emt 0:03:54]} 7. Ba3 {[%emt 0:00:27]} O-O {[%emt 0:02:15]} 8. c4 {[%emt 0:00:51]} Ne4 {[%emt 0:03:58]} 9. Qc2 {[%emt 0:04:09]} Bxa3 {[%emt 0:10:03]} 10. Nxa3 {[%emt 0:00:35]} Qe7 {[%emt 0:00:51]} 11. Qb2 {[%emt 0:00:51]} Nd7 {[%emt 0:02:16]} 12. b4 {[%emt 0:00:45]} a6 {[%emt 0:02:03]} 13. Nc2 {[%emt 0:03:44]} Ndf6 {[%emt 0:06:10]} 14. Ne5 {[%emt 0:01:42]} Nd7 {[%emt 0:03:05]} 15. Ne1 {[%emt 0:12:10]} Nxe5 {[%emt 0:05:52]} 16. dxe5 {[%emt 0:00:09]} Bd7 {[%emt 0:02:11]} 17. c5 {[%emt 0:07:19]} Be8 {[%emt 0:02:05]} 18. f3 {[%emt 0:09:09]} Ng5 {[%emt 0:00:42]} 19. h4 {[%emt 0:02:15]} Nf7 {[%emt 0:00:47]} 20. g3 {[%emt 0:01:35]} g5 {[%emt 0:03:30]} 21. Qd4 {[%emt 0:03:08]} Kh8 {[%emt 0:03:46]} 22. Be2 {[%emt 0:05:34]} Nh6 {[%emt 0:01:24]} 23. hxg5 {[%emt 0:03:43]} Qxg5 {[%emt 0:00:17]} 24. Qf4 {[%emt 0:00:25]} Qg7 {[%emt 0:01:26]} 25. Kf2 {[%emt 0:00:53]} Ng8 {[%emt 0:00:21]} 26. Nd3 {[%emt 0:04:02]} Ne7 {[%emt 0:01:43]} 27. Rh1 {[%emt 0:01:38]} Ng6 {[%emt 0:06:00]} 28. Qd4 {[%emt 0:00:48]} Rg8 {[%emt 0:01:08]} 29. Rh3 {[%emt 0:00:38]} Nf8 {[%emt 0:01:26]} 30. Rah1 {[%emt 0:01:14]} Rc8 {[%emt 0:05:17]} 31. Nf4 {[%emt 0:00:27]} Bg6 {[%emt 0:03:11]} 32. Rh6 {[%emt 0:05:05]} Qf7 {[%emt 0:01:18]} 33. Bd3 {[%emt 0:00:31]} Rc7 {[%emt 0:01:41]} 34. R1h4 {[%emt 0:09:47]} Rg7 {[%emt 0:01:10]} 35. Nh3 {[%emt 0:00:58]} Qe7 {[%emt 0:01:15]} 36. f4 {[%emt 0:00:43]} Bf7 {[%emt 0:05:19]} 37. Ng5 {[%emt 0:00:50]} Bg8 {[%emt 0:00:12]} 38. g4 {[%emt 0:04:24]} Ng6 {[%emt 0:04:13]} 39. R4h5 {[%emt 0:05:53]} Qf8 {[%emt 0:02:10]} 40. gxf5 {[%emt 0:00:47]} exf5 {[%emt 0:00:43]} 41. e6 {[%emt 0:30:38]} Rce7 {[%emt 0:32:55]} 42. Rxg6 {[%emt 0:01:02]} 1-0